bitfinex/quotes_SOLUSD_20250805
["timestamp","ask_amount","ask_price","bid_price","bid_amount"]
[1754360104292,0.03,168.21,168.2,13.28369498]
[1754360104473,0.03,168.21,168.2,7.5206756]
[1754360104678,0.03,168.21,168.2,8.2106756]
[1754360104882,0.03,168.21,168.2,13.28369498]
[1754360106184,0.03,168.21,168.2,28.38991055]
[1754360106878,0.03,168.21,168.2,34.33521376]
[1754360109183,0.03,168.21,168.2,28.38991055]
[1754360110099,0.03,168.21,168.2,27.69991055]
[1754360110302,0.03,168.21,168.2,22.62689117]
[1754360110505,5.81301938,168.21,168.2,7.5206756]
[1754360110988,55.62202414,168.21,168.2,7.5206756]
[1754360112901,29.62202414,168.21,168.2,7.5206756]
[1754360114601,24.54900476,168.21,168.2,7.5206756]
[1754360114802,29.62202414,168.21,168.2,7.5206756]
[1754360119591,24.54900476,168.21,168.2,7.5206756]
[1754360119908,29.62202414,168.21,168.2,7.5206756]
[1754360124100,29.76418571,168.21,168.2,7.5206756]
[1754360124304,24.54900476,168.21,168.2,7.5206756]
[1754360124480,28.91202414,168.21,168.2,7.5206756]
[1754360124813,17.894055,168.21,168.2,8.2106756]
[1754360125109,41.57,168.21,168.2,8.2106756]
[1754360126081,0.03,168.21,168.2,13.28369498]
[1754360126289,41.59,168.21,168.2,13.28369498]
[1754360127393,41.59,168.21,168.2,7.5206756]
[1754360127715,42.3,168.21,168.2,7.5206756]
[1754360128206,41.59,168.21,168.2,7.5206756]
[1754360128912,47.53494976,168.21,168.2,7.5206756]
[1754360130810,48.19494976,168.21,168.2,7.5206756]
[1754360131010,55.71562476,168.21,168.2,7.5206756]
[1754360131211,60.78864414,168.21,168.2,7.5206756]
[1754360132299,60.82864414,168.21,168.2,7.5206756]
[1754360132696,60.16864414,168.21,168.2,7.5206756]
[1754360133211,49.150675,168.21,168.2,7.5206756]
[1754360133400,55.09562476,168.21,168.2,7.5206756]
[1754360133596,60.82864414,168.21,168.2,7.5206756]
[1754360136193,60.97080571,168.21,168.2,7.5206756]
[1754360140214,60.97080571,168.21,168.2,1e-08]
[1754360148226,0.14216157,168.2,168.19,1e-08]
[1754360148399,26.92669973,168.2,168.19,1e-08]
[1754360148601,21.85368035,168.2,168.19,1e-08]
[1754360148805,14.20321016,168.2,168.19,1e-08]
[1754360149005,81.74321016,168.2,168.19,1e-08]
[1754360149314,81.08321016,168.2,168.19,1e-08]
[1754360150127,81.74321016,168.2,168.19,1e-08]
[1754360150805,81.08321016,168.2,168.19,1e-08]
[1754360151743,81.74321016,168.2,168.19,1e-08]
[1754360153029,55.74321016,168.2,168.19,1e-08]
[1754360153339,74.79788223,168.2,168.19,1e-08]
[1754360153840,74.79788223,168.2,168.18,1e-08]
[1754360154138,9.68147588,168.19,168.18,1e-08]
[1754360154841,15.62713257,168.19,168.18,1e-08]
[1754360158732,11.67867607,168.19,168.18,1e-08]
[1754360158932,15.62466153,168.19,168.18,1e-08]
[1754360159131,15.62466345,168.19,168.18,1e-08]
[1754360159340,26.64678345,168.19,168.18,1e-08]
[1754360159740,26.12894502,168.19,168.18,1e-08]
[1754360159923,22.18295764,168.19,168.18,1e-08]
[1754360160543,63.72295764,168.19,168.18,0.68000001]
[1754360160933,89.72295764,168.19,168.18,0.68000001]
[1754360161162,79.49917321,168.19,168.18,1e-08]
[1754360161347,83.44342914,168.19,168.18,1e-08]
[1754360161748,63.72295764,168.19,168.18,1e-08]
[1754360162646,63.72295764,168.19,168.18,0.68000001]
[1754360162842,63.72295764,168.19,168.18,1e-08]
[1754360163439,64.39295764,168.19,168.18,1e-08]
[1754360165842,68.33400929,168.19,168.18,1e-08]
[1754360167478,64.39295764,168.19,168.18,1e-08]
[1754360171308,68.33448037,168.19,168.18,1e-08]
[1754360172056,67.66448037,168.19,168.18,1e-08]
[1754360172465,68.33448037,168.19,168.18,1e-08]
[1754360173162,67.66448037,168.19,168.18,1e-08]
[1754360173564,20.90929942,168.19,168.18,0.68000001]
[1754360173764,11.01867607,168.19,168.18,0.68000001]
[1754360173968,52.53867607,168.19,168.18,0.68000001]
[1754360174455,78.53867607,168.19,168.18,0.68000001]
[1754360175568,73.46565669,168.19,168.18,0.68000001]
[1754360175866,78.53867607,168.19,168.18,0.68000001]
[1754360176174,53.35083764,168.19,168.18,1e-08]
[1754360178163,57.29988348,168.19,168.18,1e-08]
[1754360178362,75.16925848,168.19,168.18,1e-08]
[1754360178959,85.50045173,168.19,168.18,1e-08]
[1754360179685,84.83045173,168.19,168.18,1e-08]
[1754360181559,85.50045173,168.19,168.18,1e-08]
[1754360182694,84.83045173,168.19,168.18,1e-08]
[1754360183060,85.50045173,168.19,168.18,1e-08]
[1754360184465,85.50045173,168.19,168.15,0.68]
[1754360184466,26.0,168.16,168.13,0.68]
[1754360184713,5.07301938,168.14,168.13,0.68]
[1754360185207,9.90119776,168.15,168.13,0.68]
[1754360185502,41.52,168.14,168.13,0.68]
[1754360186565,41.52,168.14,168.13,15.78621557]
[1754360186764,41.52,168.14,168.13,21.73399407]
[1754360187283,41.52,168.14,168.13,15.78621557]
[1754360188307,41.52,168.14,168.13,21.73399407]
[1754360188477,9.90119776,168.15,168.14,15.10621557]
[1754360188819,51.42119776,168.15,168.14,15.76621557]
[1754360189392,51.42119776,168.15,168.14,26.78665971]
[1754360192734,51.42119776,168.15,168.14,20.83923495]
[1754360193731,51.42119776,168.15,168.14,15.76621557]
[1754360193900,51.42119776,168.15,168.14,0.66]
[1754360198055,51.42119776,168.15,168.14,5.73301938]
[1754360198841,51.42119776,168.15,168.14,20.83923495]
[1754360200708,0.03,168.19,168.18,15.10621557]
[1754360200910,0.03,168.24,168.19,0.14216157]
[1754360201111,0.03,168.24,168.22,20.17923495]
[1754360201311,0.03,168.24,168.22,20.83923495]
[1754360202331,41.59,168.24,168.2,0.66]
[1754360202632,41.59,168.24,168.21,15.10621557]
[1754360203131,41.59,168.24,168.22,0.66]
[1754360204928,41.59,168.24,168.21,20.17923495]
[1754360205523,42.25,168.22,168.19,15.10621557]
[1754360207134,41.56,168.22,168.2,5.73301938]
[1754360207427,41.56,168.22,168.21,5.73301938]
[1754360208861,41.56,168.22,168.2,5.07301938]
[1754360209354,41.56,168.22,168.2,5.73301938]
[1754360209503,41.56,168.22,168.2,5.07301938]
[1754360209708,42.25,168.22,168.2,5.07301938]
[1754360210135,41.56,168.22,168.2,5.07301938]
[1754360210504,41.56,168.22,168.21,5.73301938]
[1754360210736,41.56,168.22,168.21,20.83923495]
[1754360211108,41.56,168.22,168.21,108.33923495]
[1754360211508,41.56,168.22,168.21,107.67923495]
[1754360211714,42.25,168.22,168.21,102.60621557]
[1754360212240,41.59,168.22,168.21,102.60621557]
[1754360213110,41.59,168.22,168.21,107.67923495]
[1754360213517,41.59,168.22,168.21,102.60621557]
[1754360213712,41.59,168.22,168.21,107.67923495]
[1754360214049,41.59,168.22,168.21,108.33923495]
[1754360214419,41.59,168.22,168.21,114.28418471]
[1754360214635,0.03,168.22,168.21,114.28418471]
[1754360215953,0.03,168.23,168.21,31.99936566]
[1754360216114,0.03,168.23,168.22,20.98139652]
[1754360217746,1e-08,168.23,168.22,26.64887553]
[1754360217942,1e-08,168.23,168.22,32.59347189]
[1754360218241,0.03,168.24,168.23,51.3944159]
[1754360218449,0.03,168.24,168.23,93.0144159]
[1754360218630,0.03,168.24,168.23,93.6944159]
[1754360219531,0.03,168.24,168.23,99.6386589]
[1754360219838,0.03,168.25,168.24,15.24837714]
[1754360220044,0.03,168.25,168.24,25.3944159]
[1754360220551,0.03,168.25,168.24,26.0744159]
[1754360220843,52.29370579,168.32,168.25,0.14216157]
[1754360221035,51.60370579,168.32,168.31,5.07301938]
[1754360221236,51.60370579,168.32,168.31,107.67923495]
[1754360221453,51.60370579,168.32,168.31,20.17923495]
[1754360221631,51.60370579,168.32,168.31,26.12065257]
[1754360221836,9.98370579,168.32,168.31,26.80065257]
[1754360222337,10.67370579,168.32,168.31,15.10621557]
[1754360222655,10.67370579,168.32,168.3,15.10621557]
[1754360222824,0.69,168.31,168.29,15.10621557]
[1754360223949,15.92483654,168.32,168.29,15.10621557]
[1754360223950,0.69,168.3,168.29,20.17923495]
[1754360224150,0.69,168.3,168.29,15.10621557]
[1754360224543,0.69,168.3,168.29,20.17923495]
[1754360225853,9.98370579,168.32,168.29,20.17923495]
[1754360226153,0.69,168.31,168.3,5.07301938]
[1754360226352,9.98370579,168.32,168.3,5.07301938]
[1754360226545,9.98370579,168.32,168.31,5.07301938]
[1754360227524,9.98370579,168.32,168.31,20.17923495]
[1754360227734,9.98370579,168.32,168.31,26.0744159]
[1754360227963,0.2,168.35,168.32,15.10621557]
[1754360228165,0.2,168.35,168.34,20.17923495]
[1754360228667,0.2,168.35,168.34,20.85923495]
[1754360230270,0.2,168.35,168.34,26.11959374]
[1754360230480,0.2,168.35,168.34,26.79959374]
[1754360230762,0.2,168.35,168.34,26.94175531]
[1754360232864,0.2,168.35,168.34,5.07301938]
[1754360232865,0.89,168.35,168.34,5.07301938]
[1754360233163,0.89,168.35,168.33,5.07301938]
[1754360233369,0.2,168.35,168.33,5.07301938]
[1754360233663,0.69,168.34,168.33,5.07301938]
[1754360234949,0.69,168.34,168.32,87.5]
[1754360235272,11.21318303,168.35,168.3,41.10621557]
[1754360235472,5.07301938,168.34,168.29,20.17923495]
[1754360235766,5.76301938,168.34,168.29,20.17923495]
[1754360235965,0.69,168.33,168.3,5.07301938]
[1754360236157,0.69,168.33,168.31,5.07301938]
[1754360237364,0.69,168.32,168.3,5.07301938]
[1754360237549,5.9404463,168.34,168.3,5.07301938]
[1754360237751,0.69,168.32,168.3,5.07301938]
[1754360238087,0.69,168.32,168.28,87.5]
[1754360238293,5.76301938,168.32,168.28,87.5]
[1754360238577,0.69,168.31,168.28,87.5]
[1754360238777,0.69,168.3,168.28,87.5]
[1754360239446,0.69,168.3,168.28,92.57301938]
[1754360239648,11.0141249,168.32,168.28,87.5]
[1754360239878,0.69,168.29,168.28,87.5]
[1754360240281,5.94110552,168.32,168.28,92.57301938]
[1754360240581,0.69,168.31,168.28,92.57301938]
[1754360242061,5.07301938,168.33,168.29,5.07301938]
[1754360242259,0.69,168.33,168.29,5.75301938]
[1754360242582,5.07301938,168.34,168.29,5.07301938]
[1754360242583,0.69,168.32,168.29,5.07301938]
[1754360242960,0.69,168.31,168.28,92.57301938]
[1754360245285,11.70377296,168.33,168.28,99.19547625]
[1754360245451,11.01377296,168.33,168.28,99.19547625]
[1754360245654,26.89,168.35,168.3,5.07301938]
[1754360245877,5.76301938,168.34,168.3,5.75301938]
[1754360246272,0.69,168.34,168.3,11.69477082]
[1754360246579,0.69,168.34,168.31,0.68]
[1754360247172,0.69,168.33,168.3,92.57301938]
[1754360247367,0.69,168.33,168.3,87.5]
[1754360247957,0.63059465,168.33,168.3,87.5]
[1754360249072,5.07301938,168.34,168.3,87.5]
[1754360249896,0.71,168.33,168.3,87.5]
[1754360251492,0.71,168.33,168.3,88.18]
[1754360251660,5.07301938,168.34,168.3,88.18]
[1754360251864,5.78301938,168.34,168.3,88.18]
[1754360254559,5.78301938,168.33,168.3,87.5]
[1754360254762,0.71,168.32,168.3,87.5]
[1754360255583,11.72342338,168.34,168.3,88.18]
[1754360255773,11.72342338,168.34,168.31,0.68]
[1754360256791,0.2,168.35,168.31,0.68]
[1754360256966,5.27301938,168.35,168.31,0.68]
[1754360257166,5.98301938,168.35,168.31,0.68]
[1754360257781,11.92308825,168.35,168.31,0.68]
[1754360258501,5.27301938,168.35,168.31,93.44139871]
[1754360258705,0.2,168.35,168.32,0.68]
[1754360259205,0.2,168.35,168.34,5.07301938]
[1754360259577,0.2,168.35,168.34,5.75301938]
[1754360259776,0.2,168.35,168.34,20.85923495]
[1754360260879,0.2,168.35,168.34,26.79959374]
[1754360268702,0.2,168.35,168.34,20.17923495]
[1754360268903,0.91,168.35,168.33,11.01365658]
[1754360269527,0.91,168.35,168.32,87.5]
[1754360269528,0.71,168.34,168.32,87.5]
[1754360269994,0.71,168.34,168.32,92.57301938]
[1754360272202,0.2,168.35,168.32,92.57301938]
[1754360272403,0.91,168.35,168.32,92.57301938]
[1754360272611,0.91,168.35,168.32,98.51406025]
[1754360273002,0.91,168.35,168.32,92.57301938]
[1754360273917,0.71,168.34,168.32,87.5]
[1754360274936,0.2,168.35,168.32,93.44102151]
[1754360275115,0.2,168.35,168.32,99.19404089]
[1754360275307,0.2,168.35,168.34,5.07301938]
[1754360275708,0.2,168.35,168.34,5.75301938]
[1754360276117,0.2,168.35,168.34,93.25301938]
[1754360277333,0.2,168.35,168.34,99.19337817]
[1754360278227,0.2,168.35,168.34,87.5]
[1754360278436,0.2,168.35,168.34,92.57301938]
[1754360278616,0.87,168.35,168.34,87.5]
[1754360279007,0.2,168.35,168.34,92.57301938]
[1754360279221,0.2,168.35,168.34,87.5]
[1754360279428,0.2,168.35,168.34,92.57301938]
[1754360280507,0.2,168.35,168.34,113.61959374]
[1754360280708,0.2,168.35,168.34,114.33959374]
[1754360280930,0.2,168.35,168.34,114.48175531]
[1754360286921,0.2,168.35,168.34,115.07579118]
[1754360287940,0.2,168.35,168.34,114.48175531]
[1754360288144,0.2,168.35,168.34,156.02175531]
[1754360292463,0.2,168.35,168.34,155.30175531]
[1754360294650,0.87,168.35,168.34,107.67923495]
[1754360294831,0.2,168.35,168.34,113.61959374]
[1754360295946,0.87,168.35,168.34,113.61959374]
[1754360296553,0.87,168.35,168.34,107.67923495]
[1754360296871,0.87,168.35,168.34,87.5]
[1754360297040,0.87,168.35,168.33,0.06]
[1754360297232,0.67,168.34,168.33,0.06]
[1754360303449,11.68337817,168.34,168.33,0.06]
[1754360312662,6.61035879,168.34,168.33,0.06]
[1754360312868,11.68337817,168.34,168.33,0.06]
[1754360313491,5.74301938,168.34,168.33,0.06]
[1754360314486,5.07301938,168.34,168.33,0.06]
[1754360314691,6.14003773,168.35,168.33,0.06]
[1754360314895,5.07301938,168.34,168.33,0.06]
[1754360315490,0.2,168.35,168.33,0.75]
[1754360315660,0.2,168.35,168.33,0.06]
[1754360316161,0.87,168.35,168.33,0.06]
[1754360317693,0.67,168.34,168.33,0.06]
[1754360318603,5.74301938,168.34,168.33,0.06]
[1754360319891,5.27301938,168.35,168.33,0.06]
[1754360320479,0.2,168.35,168.33,0.75]
[1754360320778,0.2,168.35,168.34,0.69]
[1754360321590,0.2,168.35,168.34,20.86923495]
[1754360321783,0.2,168.35,168.34,26.95175531]
[1754360322370,0.2,168.35,168.34,27.54579118]
[1754360326393,0.2,168.35,168.34,21.87873593]
[1754360326593,0.2,168.35,168.34,26.95175531]
[1754360327597,0.2,168.35,168.34,27.54579118]
[1754360329411,0.2,168.35,168.34,22.4727718]
[1754360329576,0.2,168.35,168.34,27.54579118]
[1754360332309,0.2,168.36,168.35,108.48838308]
[1754360332478,0.2,168.36,168.35,155.73140246]
[1754360334374,0.2,168.36,168.35,113.56140246]
[1754360334583,0.87,168.36,168.35,107.47923495]
[1754360340205,0.2,168.36,168.35,107.47923495]
[1754360341400,0.89,168.36,168.35,107.47923495]
[1754360346722,0.2,168.36,168.35,107.47923495]
[1754360347905,0.2,168.36,168.35,114.08924089]
[1754360348621,0.2,168.36,168.35,107.47923495]
[1754360349606,0.2,168.36,168.35,109.01622151]
[1754360349931,0.2,168.36,168.35,114.08924089]
[1754360350830,0.2,168.36,168.35,113.41924089]
[1754360351530,0.2,168.36,168.35,114.08924089]
[1754360354135,0.2,168.36,168.35,108.34622151]
[1754360354439,0.89,168.36,168.35,113.41924089]
[1754360354746,0.2,168.36,168.35,113.41924089]
[1754360355408,0.2,168.36,168.35,114.08924089]
[1754360355934,0.2,168.36,168.35,114.23140246]
[1754360361639,0.2,168.36,168.35,113.73140246]
[1754360362022,0.2,168.38,168.37,0.14216157]
[1754360362340,0.2,168.38,168.37,47.36518095]
[1754360363237,0.2,168.38,168.37,53.3044813]
[1754360363447,0.2,168.38,168.37,52.49231973]
[1754360363651,0.2,168.38,168.37,67.5985353]
[1754360367435,0.2,168.38,168.37,68.2685353]
[1754360367930,0.2,168.38,168.37,155.3685353]
[1754360368848,0.2,168.38,168.37,154.6985353]
[1754360369620,0.2,168.38,168.37,149.62551592]
[1754360369825,0.92,168.38,168.35,87.16]
[1754360370224,0.2,168.38,168.35,87.16]
[1754360370430,5.79301938,168.37,168.35,87.16]
[1754360370635,5.79301938,168.36,168.35,87.16]
[1754360370835,0.72,168.36,168.35,87.16]
[1754360371041,5.79301938,168.36,168.35,87.16]
[1754360371931,0.72,168.36,168.35,87.16]
[1754360373641,0.92,168.38,168.35,98.17302532]
[1754360373836,0.92,168.38,168.35,98.86302532]
[1754360374033,0.2,168.38,168.36,20.86923495]
[1754360374240,0.2,168.38,168.37,5.07301938]
[1754360375048,0.92,168.38,168.37,5.07301938]
[1754360375437,0.92,168.38,168.36,20.17923495]
[1754360375641,0.72,168.37,168.36,26.11880187]
[1754360376049,0.72,168.37,168.36,21.04578249]
[1754360377741,0.2,168.38,168.36,26.80880187]
[1754360377946,0.2,168.38,168.37,5.07301938]
[1754360378777,0.2,168.38,168.37,5.76301938]
[1754360379548,0.2,168.38,168.37,20.86923495]
[1754360379751,0.2,168.38,168.37,113.9085353]
[1754360380058,0.2,168.38,168.37,113.2185353]
[1754360381982,0.92,168.38,168.37,113.2185353]
[1754360382866,0.2,168.38,168.37,113.2185353]
[1754360383276,0.2,168.38,168.37,113.9085353]
[1754360386785,0.2,168.38,168.37,113.2185353]
[1754360391387,0.2,168.38,168.37,113.9085353]
[1754360393088,0.2,168.38,168.37,113.2185353]
[1754360393987,0.92,168.38,168.37,87.1]
[1754360395875,0.92,168.38,168.37,93.03930035]
[1754360396187,0.92,168.38,168.37,87.1]
[1754360396374,0.2,168.38,168.37,93.03930035]
[1754360396595,0.2,168.38,168.37,98.11231973]
[1754360396788,0.2,168.38,168.37,108.83551592]
[1754360396965,0.2,168.38,168.37,113.9085353]
[1754360399498,0.2,168.38,168.37,113.2185353]
[1754360400583,0.2,168.38,168.37,102.20621557]
[1754360400784,0.2,168.38,168.37,108.14551592]
[1754360401096,0.9,168.38,168.37,108.14551592]
[1754360401500,0.2,168.38,168.37,108.14551592]
[1754360401705,0.2,168.38,168.37,113.2185353]
[1754360402006,0.2,168.38,168.37,113.8985353]
[1754360405367,0.2,168.38,168.37,113.2185353]
[1754360405566,0.2,168.38,168.37,102.20621557]
[1754360405567,0.9,168.38,168.37,102.20621557]
[1754360408684,0.9,168.38,168.37,108.14551592]
[1754360409303,0.2,168.38,168.37,108.14551592]
[1754360414617,0.2,168.38,168.37,113.8985353]
[1754360414905,0.2,168.38,168.37,108.82551592]
[1754360415115,0.2,168.38,168.37,113.8985353]
[1754360416999,0.2,168.38,168.37,108.14551592]
[1754360417300,0.9,168.38,168.37,102.20621557]
[1754360417838,0.9,168.38,168.37,87.1]
[1754360421735,0.2,168.38,168.37,87.1]
[1754360422541,0.9,168.38,168.37,87.1]
[1754360423924,0.2,168.38,168.37,93.03930035]
[1754360424223,0.2,168.38,168.37,93.71930035]
[1754360425352,0.2,168.38,168.37,112.07856095]
[1754360426438,0.2,168.38,168.37,108.82551592]
[1754360426658,0.2,168.38,168.37,108.14551592]
[1754360427538,0.9,168.38,168.37,108.14551592]
[1754360427710,0.2,168.38,168.37,108.14551592]
[1754360428040,0.9,168.38,168.37,87.1]
[1754360428348,0.2,168.38,168.37,87.1]
[1754360429342,0.2,168.38,168.37,93.03930035]
[1754360429538,0.2,168.38,168.37,113.93828501]
[1754360431016,0.2,168.38,168.37,155.37828501]
[1754360433149,0.2,168.38,168.37,113.22828501]
[1754360433354,0.2,168.38,168.37,108.14551592]
[1754360433819,0.2,168.38,168.37,113.93828501]
[1754360434455,0.88,168.38,168.37,108.14551592]
[1754360434954,0.2,168.38,168.37,108.14551592]
[1754360436445,0.2,168.38,168.37,108.85551592]
[1754360437127,0.2,168.38,168.37,108.14551592]
[1754360438740,0.2,168.38,168.37,108.85551592]
[1754360439739,0.2,168.38,168.37,113.93828501]
[1754360440657,0.2,168.38,168.37,108.85551592]
[1754360441161,0.2,168.38,168.37,108.14551592]
[1754360442456,0.88,168.38,168.37,102.20621557]
[1754360443862,0.88,168.38,168.36,0.06]
[1754360444181,5.76276909,168.37,168.36,0.06]
[1754360445147,11.70206944,168.37,168.36,0.06]
[1754360445327,26.0,168.35,168.34,0.06]
[1754360445538,26.0,168.35,168.33,0.06]
[1754360445539,36.16553818,168.35,168.33,0.06]
[1754360445782,5.76276909,168.34,168.33,0.06]
[1754360446755,11.70312788,168.34,168.33,0.06]
[1754360450369,53.14312788,168.34,168.33,0.06]
[1754360451468,47.20276909,168.34,168.33,0.06]
[1754360453168,49.58251709,168.34,168.33,0.06]
[1754360453955,55.52287588,168.34,168.33,0.06]
[1754360458759,53.14312788,168.34,168.33,0.06]
[1754360469691,84.22589697,168.34,168.33,0.06]
[1754360469899,58.36805854,168.34,168.32,0.06]
[1754360470065,36.16553818,168.32,168.31,0.06]
[1754360470264,77.74769975,168.32,168.31,0.06]
[1754360470478,80.84829775,168.32,168.31,0.06]
[1754360470683,86.97904482,168.32,168.3,0.06]
[1754360470861,3.97925705,168.31,168.3,0.06]
[1754360471686,9.92067467,168.31,168.3,0.06]
[1754360471886,12.30127267,168.31,168.3,0.06]
[1754360472701,14.1349031,168.31,168.3,0.06]
[1754360474096,14.1349031,168.31,168.25,0.06]
[1754360474097,29.13060872,168.31,168.25,0.06]
[1754360474308,5.09288748,168.26,168.25,0.06]
[1754360474464,46.53288748,168.26,168.25,0.06]
[1754360476300,52.47607064,168.26,168.25,0.06]
[1754360477893,53.19607064,168.26,168.25,0.06]
[1754360479711,52.47607064,168.26,168.25,0.77]
[1754360480007,52.47607064,168.26,168.25,0.06]
[1754360482474,53.19607064,168.26,168.25,0.06]
[1754360484585,84.28895812,168.26,168.25,0.06]
[1754360485608,74.10318316,168.26,168.25,0.06]
[1754360485817,79.19607064,168.26,168.25,0.06]
[1754360489130,72.53288748,168.26,168.25,0.06]
[1754360489404,46.55288748,168.26,168.25,0.72]
[1754360489810,41.46,168.26,168.25,0.72]
[1754360490021,46.55288748,168.26,168.25,0.72]
[1754360493385,46.55288748,168.26,168.24,0.06]
[1754360493594,5.09288748,168.25,168.24,0.06]
[1754360493802,46.55288748,168.26,168.24,0.06]
[1754360495500,5.09288748,168.25,168.24,0.06]
[1754360496209,5.77288748,168.25,168.24,0.06]
[1754360497486,11.71642388,168.25,168.24,0.06]
[1754360499086,11.03642388,168.25,168.24,0.06]
[1754360501112,11.71642388,168.25,168.24,0.06]
[1754360501624,11.03642388,168.25,168.24,0.06]
[1754360501814,5.09288748,168.25,168.24,0.72]
[1754360502199,46.55288748,168.26,168.24,0.72]
[1754360502608,41.46,168.25,168.24,0.72]
[1754360503419,46.55288748,168.25,168.24,0.06]
[1754360503621,53.17642388,168.25,168.24,0.06]
[1754360504005,46.55288748,168.25,168.24,0.06]
[1754360505127,46.55288748,168.25,168.24,0.72]
[1754360506212,41.46,168.25,168.24,0.72]
[1754360509428,41.46,168.25,168.24,11.75677716]
[1754360510100,41.46,168.25,168.24,6.66388968]
[1754360511508,41.46,168.26,168.24,6.66388968]
[1754360511711,41.46,168.26,168.24,6.00388968]
[1754360511909,41.46,168.26,168.25,6.6035364]
[1754360512103,5.12288748,168.3,168.25,11.69642388]
[1754360512316,0.03,168.3,168.26,0.66]
[1754360512513,41.46,168.29,168.27,0.66]
[1754360513130,41.46,168.29,168.27,5.09288748]
[1754360513309,41.46,168.29,168.28,0.66]
[1754360513639,41.46,168.29,168.26,5.75288748]
[1754360513844,41.46,168.29,168.26,11.69579773]
[1754360514345,41.46,168.29,168.26,15.10621557]
[1754360514543,0.68,168.28,168.25,5.94341218]
[1754360514826,41.44,168.27,168.25,5.94341218]
[1754360515229,41.44,168.27,168.25,6.60341218]
[1754360515607,41.44,168.27,168.25,11.69629966]
[1754360517012,41.44,168.27,168.26,6.60318316]
[1754360517205,41.44,168.27,168.26,11.69607064]
[1754360518334,41.44,168.27,168.26,0.66]
[1754360518541,41.44,168.27,168.25,5.09288748]
[1754360518738,5.77288748,168.26,168.24,0.06]
[1754360518900,41.44,168.25,168.24,0.06]
[1754360519331,42.12,168.25,168.24,0.06]
[1754360519716,47.21288748,168.25,168.24,0.06]
[1754360523040,41.44,168.25,168.24,0.06]
[1754360523734,41.44,168.25,168.24,0.73]
[1754360524432,53.15642388,168.25,168.24,0.06]
[1754360527230,47.21288748,168.25,168.24,0.06]
[1754360528835,53.15642388,168.25,168.24,0.06]
[1754360529641,47.21288748,168.25,168.24,0.06]
[1754360531112,53.15642388,168.25,168.24,0.06]
[1754360532321,46.53288748,168.25,168.24,0.06]
[1754360532522,41.44,168.25,168.24,0.06]
[1754360535145,41.44,168.25,168.24,0.73]
[1754360535439,41.44,168.25,168.24,0.06]
[1754360536351,47.21288748,168.25,168.24,0.06]
[1754360536937,42.12,168.25,168.24,0.06]
[1754360537117,41.44,168.25,168.24,0.06]
[1754360537316,42.12,168.25,168.24,0.06]
[1754360539344,53.15642388,168.25,168.24,0.06]
[1754360540652,46.53288748,168.25,168.24,0.06]
[1754360540819,47.21288748,168.25,168.24,0.06]
[1754360542627,41.44,168.25,168.24,0.06]
[1754360542828,42.12,168.25,168.24,0.06]
[1754360543928,47.21288748,168.25,168.24,0.06]
[1754360552169,42.12,168.25,168.24,0.06]
[1754360552358,47.21288748,168.25,168.24,0.06]
[1754360553363,53.15642388,168.25,168.24,0.06]
[1754360554361,47.21288748,168.25,168.24,0.06]
[1754360555463,46.53288748,168.25,168.24,0.06]
[1754360555764,41.44,168.25,168.24,0.06]
[1754360556743,47.22288748,168.25,168.24,0.06]
[1754360558564,53.16642388,168.25,168.24,0.06]
[1754360558967,42.13,168.25,168.24,0.06]
[1754360559150,47.22288748,168.25,168.24,0.06]
[1754360559353,47.25288748,168.25,168.24,0.06]